bitfinex-derivatives/quotes_SOLF0:USTF0_20241215
["timestamp","ask_amount","ask_price","bid_price","bid_amount"]
[1734249200202,2.3044,217.02,216.97,5.278]
[1734249201504,2.3046,217.0,216.96,5.41495294]
[1734249202701,6.48753233,217.01,216.96,5.41495294]
[1734249203800,2.3048,216.98,216.96,5.41495294]
[1734249204206,6.48753233,217.01,216.96,5.41495294]
[1734249204606,6.48753233,217.01,216.94,6.48753233]
[1734249204908,2.3049,216.98,216.92,8.79293233]
[1734249205805,4.5249,216.98,216.92,8.79293233]
[1734249206007,2.305,216.96,216.92,6.48753233]
[1734249206606,2.3049,216.97,216.93,5.44226308]
[1734249208107,4.5248,216.98,216.93,7.74756308]
[1734249210313,2.22,217.0,216.94,6.48753233]
[1734249210506,2.22,217.01,216.96,6.48753233]
[1734249210701,2.22,217.01,216.93,5.44226308]
[1734249210702,8.70753233,217.01,216.93,5.44226308]
[1734249210905,2.3048,216.99,216.94,2.3052]
[1734249213515,2.22,217.0,216.95,8.79263233]
[1734249214417,4.5245,217.01,216.96,2.305]
[1734249214609,2.3045,217.01,216.96,2.305]
[1734249215414,2.3044,217.02,216.97,8.79233233]
[1734249216206,2.3039,217.07,217.02,2.3043]
[1734249216414,8.70753233,217.09,217.01,6.48753233]
[1734249217106,6.48753233,217.09,217.01,6.48753233]
[1734249217313,2.22,217.08,217.01,6.48753233]
[1734249217711,2.22,217.08,217.01,8.79193233]
[1734249218415,2.22,217.08,216.98,1.4149]
[1734249218416,2.22,217.08,217.03,6.48753233]
[1734249218812,6.48753233,217.1,217.03,6.48753233]
[1734249219110,2.22,217.09,217.03,6.48753233]
[1734249219510,2.3037,217.08,217.04,2.3041]
[1734249221114,2.3037,217.08,217.03,6.48753233]
[1734249222411,2.3037,217.08,217.01,6.48753233]
[1734249222611,2.3037,217.08,217.03,2.3042]
[1734249224014,2.3035,217.1,217.03,6.48753233]
[1734249224208,4.5235,217.1,217.05,6.48753233]
[1734249224407,2.3035,217.1,217.05,6.48753233]
[1734249225118,6.48753233,217.12,217.02,2.22]
[1734249225315,2.3037,217.09,217.03,8.79173233]
[1734249225617,2.3037,217.09,217.03,6.48753233]
[1734249226007,2.3037,217.09,217.05,2.304]
[1734249226211,8.70753233,217.12,217.05,2.304]
[1734249226212,2.3034,217.11,217.05,2.304]
[1734249226512,2.3034,217.11,217.05,14.37339576]
[1734249228918,2.3035,217.1,217.05,5.58186343]
[1734249229115,6.48753233,217.09,217.05,5.58186343]
[1734249230016,2.3038,217.08,217.05,5.58186343]
[1734249230812,2.3039,217.06,217.01,2.3044]
[1734249231013,6.48753233,217.07,217.01,2.3044]
[1734249231214,6.48753233,217.03,216.98,2.9588]
[1734249231524,6.48753233,217.01,216.94,7.99823233]
[1734249231719,6.48753233,217.01,216.94,6.48753233]
[1734249231720,2.22,217.0,216.94,6.48753233]
[1734249231925,2.3047,216.99,216.94,8.79263233]
[1734249232122,2.3047,216.99,216.94,6.48753233]
[1734249232823,2.22,217.0,216.94,6.48753233]
[1734249233120,2.22,217.0,216.96,12.12640383]
[1734249233919,2.22,217.0,216.97,2.3049]
[1734249234112,2.22,217.0,216.96,12.12640383]
[1734249235622,2.22,217.0,216.96,14.43140383]
[1734249236823,2.22,217.02,216.98,2.3047]
[1734249239027,1.4466,217.12,216.96,12.12640383]
[1734249239028,2.304,217.06,217.0,8.79203233]
[1734249239219,2.22,217.05,217.0,6.48753233]
[1734249240629,2.22,217.05,217.01,2.3044]
[1734249241126,2.22,217.05,217.0,6.48753233]
[1734249242625,2.22,217.05,216.98,8.79233233]
[1734249242822,6.48753233,217.04,216.98,8.79233233]
[1734249243023,2.22,217.05,216.96,5.6388715]
[1734249243024,6.48753233,217.02,216.96,5.6388715]
[1734249243330,2.3047,216.99,216.96,5.6388715]
[1734249243522,4.5047,216.99,216.96,5.6388715]
[1734249243720,2.2,216.99,216.96,12.12640383]
[1734249244734,2.2,216.99,216.97,2.3048]
[1734249247826,2.3044,217.02,216.97,2.3048]
[1734249248135,2.2,217.01,216.97,2.3048]
[1734249248935,2.2,217.01,216.9,2.2]
[1734249249234,2.2,217.01,216.94,6.48753233]
[1734249249630,2.3046,217.0,216.97,5.54935991]
[1734249249829,2.2,217.01,216.97,5.54935991]
[1734249251230,2.3046,217.0,216.97,5.54935991]
[1734249251436,6.48753233,217.03,216.97,5.54935991]
[1734249251636,2.2,217.02,216.98,6.48753233]
[1734249251836,6.48753233,217.06,216.98,6.48753233]
[1734249251837,2.2,217.01,216.98,6.48753233]
[1734249254841,2.3043,217.02,216.98,6.48753233]
[1734249255043,4.5043,217.02,216.98,6.48753233]
[1734249255941,4.5043,217.02,216.98,8.79223233]
[1734249256839,4.5043,217.02,216.98,2.3047]
[1734249259543,2.2,217.02,216.98,8.79223233]
[1734249262748,4.5042,217.03,216.98,8.79223233]
[1734249263344,2.2,217.03,216.98,6.48753233]
[1734249263546,2.2,217.03,216.97,5.54935991]
[1734249263745,2.2,217.03,216.97,12.03689224]
[1734249263942,2.2,217.03,216.98,2.3047]
[1734249263943,2.3043,217.03,216.98,2.3047]
[1734249264150,2.2,217.06,217.01,6.48753233]
[1734249264852,4.504,217.06,217.01,2.3043]
[1734249265048,2.2,217.06,217.02,6.48753233]
[1734249265553,2.2,217.07,217.02,6.48753233]
[1734249266645,2.2,217.07,217.03,2.3042]
[1734249267153,2.2,217.07,217.04,6.48753233]
[1734249268155,4.5038,217.08,217.04,6.48753233]
[1734249269256,2.2,217.08,217.02,6.48753233]
[1734249269553,6.48753233,217.06,217.0,6.48753233]
[1734249270154,6.48753233,217.06,216.98,9.42903233]
[1734249270356,2.3042,217.03,216.98,10.23823233]
[1734249270552,2.2,217.02,216.98,10.23823233]
[1734249271754,2.2,217.02,216.99,2.3046]
[1734249271950,2.3041,217.05,217.0,6.48753233]
[1734249272256,2.2,217.05,217.02,6.48753233]
[1734249272858,2.2,217.05,217.02,8.79183233]
[1734249273559,4.5039,217.07,217.03,2.3042]
[1734249276350,3.0371,217.13,217.07,2.3038]
[1734249276351,2.3034,217.11,217.07,2.3038]
[1734249277951,2.3034,217.11,217.07,8.79133233]
[1734249281057,2.3034,217.11,217.07,6.48753233]
[1734249281266,2.2,217.15,217.07,6.48753233]
[1734249281464,4.5031,217.14,217.09,6.48753233]
[1734249281664,2.3031,217.14,217.09,6.48753233]
[1734249282263,2.2,217.16,217.09,8.79113233]
[1734249282663,2.2,217.16,217.11,6.48753233]
[1734249283155,2.3031,217.14,217.11,6.48753233]
[1734249284868,2.3032,217.13,217.09,5.59241096]
[1734249285063,6.48753233,217.16,217.09,5.59241096]
[1734249286565,2.3034,217.11,217.09,5.59241096]
[1734249286765,6.48753233,217.16,217.09,5.59241096]
[1734249287559,2.2,217.17,217.09,12.07994329]
[1734249287765,8.68753233,217.17,217.09,12.07994329]
[1734249288159,2.3031,217.14,217.09,12.07994329]
[1734249288564,8.68753233,217.17,217.09,12.07994329]
[1734249289567,2.3032,217.13,217.09,12.07994329]
[1734249291962,2.3032,217.13,217.11,6.48753233]
[1734249293970,2.3035,217.1,217.09,5.59241096]
[1734249295269,2.3035,217.1,217.07,6.48753233]
[1734249295674,2.3035,217.1,217.09,5.66489822]
[1734249299982,2.3035,217.1,217.09,12.15243055]
[1734249302979,2.3034,217.12,217.09,12.15243055]
[1734249303184,4.4354,217.24,217.12,6.48753233]
[1734249303185,2.2,217.17,217.12,6.48753233]
[1734249303481,2.3026,217.19,217.16,6.48753233]
[1734249307180,8.68753233,217.21,217.1,3.7453]
[1734249307482,6.48753233,217.19,217.11,6.48753233]
[1734249308678,2.303,217.15,217.11,6.48753233]
[1734249315496,2.303,217.15,217.13,6.48753233]
[1734249318195,2.3025,217.2,217.15,2.3029]
[1734249318494,2.3025,217.2,217.17,6.48753233]
[1734249322605,0.34079,217.25,217.19,6.48753233]
[1734249322810,0.34079,217.25,217.22,6.48753233]
[1734249323705,2.64269,217.25,217.22,6.48753233]
[1734249325900,2.302,217.24,217.22,6.48753233]
[1734249327298,0.34079,217.25,217.22,6.48753233]
[1734249328809,2.3021,217.23,217.22,6.48753233]
[1734249330110,2.3022,217.22,217.21,6.48753233]
[1734249333303,2.3022,217.22,217.21,11.88065199]
[1734249336811,2.2,217.26,217.15,2.2]
[1734249337014,2.3024,217.21,217.15,2.2]
[1734249337218,2.2,217.26,217.2,6.48753233]
[1734249337418,2.2,217.26,217.16,2.3028]
[1734249337618,2.2,217.26,217.2,6.48753233]
[1734249337619,2.3023,217.21,217.2,6.48753233]
[1734249345315,2.3024,217.2,217.19,5.63273124]
[1734249345620,2.3024,217.2,217.19,12.12026357]
[1734249347919,6.48753233,217.23,217.16,6.48753233]
[1734249348526,6.48753233,217.23,217.16,12.12105238]
[1734249349421,2.3023,217.21,217.16,12.12105238]
[1734249349628,6.48753233,217.23,217.16,12.12105238]
[1734249350023,2.3027,217.18,217.16,12.12105238]
[1734249352522,6.48753233,217.24,217.16,12.12105238]
[1734249352729,2.3025,217.19,217.18,6.48753233]
[1734249354525,2.2,217.25,217.18,6.48753233]
[1734249354727,2.3024,217.2,217.18,6.48753233]
[1734249360927,2.2,217.23,217.18,8.79013233]
[1734249361125,1.4581,217.27,217.22,6.48753233]
[1734249361327,2.2,217.26,217.22,6.48753233]
[1734249362136,2.3019,217.25,217.22,6.48753233]
[1734249362328,2.2,217.26,217.22,6.48753233]
[1734249363634,2.302,217.24,217.22,6.48753233]
[1734249364238,2.3019,217.25,217.22,6.48753233]
[1734249364837,2.2,217.26,217.22,6.48753233]
[1734249365037,2.302,217.24,217.22,6.48753233]
[1734249374255,41.22585158,217.28,217.22,12.03322487]
[1734249374455,41.22585158,217.28,217.25,6.48753233]
[1734249374958,2.3018,217.26,217.25,6.48753233]
[1734249376549,2.3019,217.25,217.22,5.54569254]
[1734249376753,41.22585158,217.28,217.22,12.03322487]
[1734249376953,2.2,217.27,217.22,12.03322487]
[1734249378452,2.302,217.24,217.22,12.03322487]
[1734249379363,2.302,217.24,217.22,6.48753233]
[1734249382461,2.302,217.24,217.22,11.89920962]
[1734249384466,2.2,217.27,217.22,11.89920962]
[1734249384662,2.3019,217.26,217.22,11.89920962]
[1734249384863,2.3019,217.26,217.24,6.48753233]
[1734249386370,2.3019,217.25,217.24,6.48753233]
[1734249387061,189.8930234,217.44,217.24,8.78953233]
[1734249387264,2.2,217.33,217.29,6.48753233]
[1734249388260,2.3013,217.31,217.29,6.48753233]
[1734249389767,4.5011,217.33,217.29,6.48753233]
[1734249390165,2.2,217.33,217.29,6.48753233]
[1734249390364,2.2,217.33,217.31,6.48753233]
[1734249390764,0.50093,217.37,217.31,6.48753233]
[1734249390967,0.50093,217.37,217.25,2.2]
[1734249390968,0.50093,217.37,217.33,6.48753233]
[1734249391365,0.50093,217.37,217.35,6.48753233]
[1734249394664,2.3005,217.38,217.35,6.48753233]
[1734249395371,2.3005,217.38,217.32,2.3011]
[1734249395568,6.48753233,217.41,217.31,2.9667]
[1734249395770,6.48753233,217.41,217.33,6.48753233]
[1734249397076,2.3009,217.35,217.33,6.48753233]
[1734249399971,2.3009,217.34,217.33,6.48753233]
[1734249400276,2.2,217.37,217.33,6.48753233]
[1734249400472,2.3011,217.33,217.31,8.02463233]
[1734249400677,2.3011,217.33,217.31,6.48753233]
[1734249404373,2.2,217.37,217.25,3.8052]
[1734249404374,2.301,217.34,217.25,3.8052]
[1734249404573,8.68753233,217.37,217.3,6.48753233]
[1734249404982,2.3014,217.31,217.3,6.48753233]
[1734249411983,2.301,217.33,217.3,6.48753233]
[1734249412284,2.301,217.33,217.32,6.48753233]
[1734249418888,2.3005,217.38,217.33,2.3009]
[1734249419086,2.3005,217.38,217.37,6.48753233]
[1734249419889,2.2,217.4,217.28,7.78704784]
[1734249420093,2.3007,217.37,217.35,6.48753233]
[1734249428296,2.301,217.34,217.3,2.3013]
[1734249428497,2.301,217.34,217.33,6.48753233]
[1734249429593,2.3008,217.36,217.33,6.48753233]
[1734249429789,2.2,217.4,217.35,6.48753233]
[1734249430200,2.3007,217.36,217.35,6.48753233]
[1734249435402,2.2,217.4,217.35,6.48753233]
[1734249435994,7.93423233,217.42,217.33,2.301]
[1734249435995,2.3005,217.38,217.37,6.48753233]
[1734249439300,2.2,217.39,217.37,6.48753233]
[1734249440303,4.5004,217.39,217.37,6.48753233]
[1734249444202,2.3004,217.39,217.37,6.48753233]
[1734249445907,2.3003,217.4,217.37,6.48753233]
[1734249447008,4.5001,217.42,217.39,6.48753233]
[1734249454125,2.3002,217.41,217.39,6.48753233]
[1734249454621,2.2,217.42,217.39,6.48753233]
[1734249454820,4.5001,217.42,217.39,6.48753233]
[1734249457722,4.5001,217.42,217.41,6.48753233]
[1734249457923,0.63929,217.45,217.41,6.48753233]
[1734249457924,4.48,217.44,217.41,6.48753233]
[1734249458324,0.63929,217.45,217.41,6.48753233]
[1734249458522,2.2999,217.44,217.41,6.48753233]
[1734249459833,2.81929,217.45,217.41,6.48753233]
[1734249459834,5.11909,217.45,217.41,6.48753233]
[1734249461136,2.81929,217.45,217.42,2.3001]
[1734249461331,2.81929,217.45,217.34,2.18]
[1734249461332,2.81929,217.45,217.43,6.48753233]
[1734249461536,0.63929,217.45,217.43,6.48753233]
[1734249463732,0.63929,217.45,217.41,2.3002]
[1734249463928,0.63929,217.45,217.43,6.48753233]
[1734249464336,0.63929,217.45,217.41,2.3002]
[1734249464533,0.63929,217.45,217.42,6.48753233]
[1734249465031,2.2999,217.44,217.42,6.48753233]
[1734249465539,2.2999,217.44,217.43,6.48753233]
[1734249467231,2.18,217.47,217.38,2.3005]
[1734249467232,2.3001,217.42,217.38,2.3005]
[1734249467432,2.3001,217.42,217.41,6.48753233]
[1734249467630,2.18,217.45,217.41,6.48753233]
[1734249468139,2.3,217.43,217.41,6.48753233]
[1734249468840,2.3,217.43,217.39,2.3004]
[1734249469039,2.3,217.43,217.42,6.48753233]
[1734249469240,2.3,217.43,217.39,2.3004]
[1734249469440,2.3001,217.42,217.34,2.18]
[1734249470336,2.3001,217.42,217.36,2.3007]
[1734249470537,2.3001,217.42,217.41,6.48753233]
[1734249471130,2.3,217.43,217.41,6.48753233]
[1734249471535,2.3,217.43,217.4,5.53425897]
[1734249471741,2.3,217.43,217.42,6.48753233]
[1734249474156,8.66753233,217.45,217.32,3.7344]
[1734249474333,8.66753233,217.45,217.37,6.48753233]
[1734249476043,2.3002,217.42,217.39,6.48753233]
[1734249476238,8.66753233,217.45,217.39,6.48753233]
[1734249477138,2.3003,217.4,217.39,6.48753233]
[1734249477333,2.3003,217.4,217.35,2.3008]
[1734249477533,2.3003,217.4,217.38,6.48753233]
[1734249479745,2.3003,217.4,217.36,5.53221814]
[1734249480244,2.3003,217.4,217.37,6.48753233]
[1734249480737,2.3003,217.4,217.36,5.53221814]
[1734249480942,8.66753233,217.45,217.37,6.48753233]
[1734249481739,2.3003,217.41,217.37,6.48753233]
[1734249483239,2.3003,217.41,217.36,5.53221814]
[1734249483435,2.3003,217.41,217.38,6.48753233]
[1734249485145,2.3001,217.43,217.4,6.48753233]
[1734249485445,2.3001,217.43,217.36,5.53221814]
[1734249485645,2.3001,217.43,217.41,6.48753233]
[1734249486442,2.3001,217.43,217.36,5.53221814]
[1734249486643,2.3001,217.43,217.41,6.48753233]
[1734249487443,2.3001,217.42,217.41,6.48753233]
[1734249488345,2.18,217.44,217.41,6.48753233]
[1734249489648,4.4799,217.44,217.41,6.48753233]
[1734249491743,2.3,217.43,217.41,6.48753233]
[1734249491947,2.18,217.44,217.41,6.48753233]
[1734249492252,2.3002,217.42,217.39,6.48753233]
[1734249492446,2.3002,217.42,217.36,5.53221814]
[1734249492648,2.3002,217.42,217.39,6.48753233]
[1734249493450,2.3002,217.41,217.39,6.48753233]
[1734249494854,4.4801,217.43,217.39,6.48753233]
[1734249495054,4.4801,217.43,217.41,6.48753233]
[1734249496556,2.18,217.43,217.41,6.48753233]
[1734249496758,2.3,217.42,217.41,6.48753233]
[1734249497151,2.3003,217.41,217.36,7.83291814]
[1734249497455,2.18,217.43,217.34,2.18]
[1734249497651,2.18,217.43,217.36,6.48753233]
[1734249498056,2.3002,217.41,217.36,6.48753233]
[1734249498256,2.18,217.43,217.38,6.48753233]
[1734249498451,2.18,217.43,217.4,6.48753233]
[1734249498757,2.3001,217.42,217.4,6.48753233]
[1734249499150,4.4799,217.43,217.4,6.48753233]
[1734249499456,2.18,217.43,217.42,6.48753233]
[1734249499757,2.18,217.43,217.38,2.3005]
[1734249499957,2.18,217.43,217.4,6.48753233]
[1734249504059,2.2999,217.44,217.42,6.48753233]
[1734249509258,2.3001,217.41,217.38,6.48753233]
[1734249509565,6.48753233,217.45,217.35,5.39000502]
[1734249509767,6.48753233,217.45,217.37,6.48753233]
[1734249511560,2.3003,217.4,217.37,6.48753233]
[1734249513769,2.3003,217.39,217.37,6.48753233]
[1734249517875,4.4801,217.41,217.37,6.48753233]
[1734249518078,2.18,217.41,217.4,6.48753233]
[1734249519077,4.4797,217.45,217.4,8.78773233]
[1734249519277,4.4797,217.45,217.42,6.48753233]
[1734249519773,2.18,217.45,217.42,6.48753233]
[1734249520080,2.18,217.46,217.44,6.48753233]
[1734249520280,2.18,217.47,217.44,6.48753233]
[1734249520979,2.2996,217.46,217.44,6.48753233]
[1734249522982,2.2996,217.46,217.42,6.48753233]
[1734249525083,2.18,217.47,217.4,6.48753233]
[1734249525283,2.2998,217.45,217.4,6.48753233]
[1734249525684,2.18,217.47,217.4,6.48753233]
[1734249525880,2.2997,217.45,217.4,8.78773233]
[1734249526381,2.18,217.47,217.4,6.48753233]
[1734249527690,2.2998,217.44,217.4,6.48753233]
[1734249529185,2.2999,217.43,217.4,6.48753233]
[1734249529980,2.18,217.47,217.36,2.18]
[1734249530187,6.48753233,217.46,217.35,5.39000502]
[1734249530389,6.48753233,217.46,217.39,6.48753233]
[1734249531589,2.3002,217.41,217.39,6.48753233]
[1734249535395,2.3002,217.41,217.37,8.78803233]
[1734249535790,2.3002,217.41,217.37,2.3005]
[1734249535991,2.3002,217.41,217.37,8.78803233]
[1734249537492,2.3003,217.4,217.32,1.5544]
[1734249537691,8.66753233,217.42,217.32,1.5544]
[1734249537993,8.66753233,217.42,217.35,6.48753233]
[1734249538590,2.3005,217.38,217.35,6.48753233]
[1734249538794,2.3005,217.38,217.33,2.3009]
[1734249538992,2.18,217.42,217.36,6.48753233]
[1734249539401,2.18,217.42,217.37,6.48753233]
[1734249539792,2.3003,217.4,217.34,2.3008]
[1734249540097,2.18,217.42,217.36,6.48753233]
[1734249540497,16.74763999,217.49,217.38,6.48753233]
[1734249540692,6.48753233,217.47,217.4,6.48753233]
[1734249541090,2.2999,217.43,217.4,6.48753233]
[1734249541504,2.2999,217.43,217.38,2.3003]
[1734249541696,2.2999,217.43,217.4,6.48753233]
[1734249545202,1.5346,217.51,217.4,6.48753233]
[1734249545401,6.48753233,217.49,217.42,6.48753233]
[1734249545602,2.18,217.48,217.42,6.48753233]
[1734249546604,2.2997,217.45,217.42,6.48753233]
[1734249557312,2.3001,217.42,217.39,1.5354]
[1734249557512,2.3001,217.42,217.39,8.02293233]
[1734249563909,8.66753233,217.47,217.39,8.02293233]
[1734249563910,2.3,217.43,217.39,10.32323233]
[1734249565012,2.3,217.42,217.39,6.48753233]
[1734249566914,6.48753233,217.46,217.39,6.48753233]
[1734249567213,6.48753233,217.44,217.35,2.3007]
[1734249567412,6.48753233,217.44,217.36,6.48753233]
[1734249568315,2.3003,217.39,217.36,6.48753233]
[1734249569511,2.3003,217.39,217.35,2.3007]
[1734249569718,2.3003,217.39,217.35,8.78823233]
[1734249570115,2.3006,217.37,217.32,1.4867]
[1734249570412,2.3006,217.37,217.33,6.48753233]
[1734249571217,2.3006,217.37,217.32,1.4867]
[1734249571411,2.3006,217.37,217.33,6.48753233]
[1734249571717,2.3006,217.37,217.33,8.78853233]
[1734249572915,2.3006,217.37,217.33,6.48753233]
[1734249573110,2.3008,217.35,217.32,1.4867]
[1734249573312,2.3008,217.35,217.32,7.97423233]
[1734249573709,2.3008,217.35,217.32,6.48753233]
[1734249574514,2.301,217.34,217.29,2.3014]
[1734249574716,2.301,217.34,217.3,6.48753233]
[1734249578625,2.301,217.34,217.3,2.3013]
[1734249578818,2.301,217.34,217.3,8.78883233]
[1734249580933,2.18,217.36,217.3,8.78883233]
[1734249581230,4.4807,217.36,217.3,8.78883233]
[1734249581821,2.9775,217.45,217.32,8.78863233]
[1734249582023,2.3005,217.38,217.32,8.78863233]
[1734249582225,2.18,217.37,217.32,6.48753233]
[1734249583031,2.18,217.37,217.34,2.3008]
[1734249584331,2.3005,217.38,217.34,2.3008]
[1734249584630,4.4805,217.38,217.34,8.78833233]
[1734249586228,2.18,217.39,217.34,6.48753233]
[1734249586430,2.18,217.39,217.35,2.3007]
[1734249586629,2.3003,217.4,217.35,2.3007]
[1734249586925,4.4803,217.4,217.35,2.3007]
[1734249587633,2.18,217.4,217.37,2.3005]
[1734249589035,2.18,217.4,217.36,8.78823233]
[1734249589335,2.3001,217.41,217.36,6.48753233]
[1734249590631,2.3001,217.41,217.36,8.78813233]
[1734249592634,2.3003,217.4,217.36,8.78813233]
[1734249592836,2.3003,217.4,217.36,6.48753233]
[1734249594636,2.3004,217.39,217.36,6.48753233]
[1734249597437,2.3006,217.37,217.34,6.48753233]
[1734249600334,2.3007,217.36,217.32,3.7266]
[1734249600937,1.4365,217.45,217.31,2.3011]
[1734249600938,2.3008,217.35,217.31,2.3011]
[1734249601439,2.18,217.37,217.31,2.3011]
[1734249601634,2.3007,217.36,217.29,2.3014]
[1734249601827,2.3007,217.36,217.26,10.1074776]
[1734249602032,2.3007,217.36,217.26,3.7028]
[1734249602933,2.18,217.37,217.26,3.7028]
[1734249603134,2.18,217.37,217.26,10.1074776]
[1734249604040,2.18,217.37,217.26,3.7028]
[1734249604339,2.3008,217.35,217.3,2.3012]
[1734249605643,2.301,217.33,217.29,2.3013]
[1734249605838,2.18,217.37,217.26,3.7028]
[1734249606737,2.18,217.37,217.29,2.3014]
[1734249607135,2.18,217.37,217.26,3.7028]
[1734249609244,4.4807,217.37,217.31,2.3011]
[1734249609641,4.4807,217.37,217.26,3.7028]
[1734249609945,2.18,217.37,217.32,2.3011]
[1734249610141,1.4365,217.45,217.26,29.10528983]
[1734249610337,2.18,217.44,217.28,6.4046776]
[1734249611145,2.3001,217.41,217.29,4.75145114]
[1734249611345,2.3001,217.41,217.28,6.4046776]
[1734249611649,2.3001,217.41,217.29,4.75147571]
[1734249611841,2.3001,217.41,217.28,6.4046776]
[1734249612045,2.3001,217.41,217.29,4.75147825]
[1734249612247,2.3001,217.41,217.28,6.4046776]
[1734249612447,2.3001,217.41,217.35,2.3007]
[1734249612847,2.18,217.44,217.32,2.18]
[1734249613148,2.3003,217.4,217.34,2.3008]
[1734249613545,2.3003,217.39,217.34,2.3008]
[1734249616143,2.18,217.44,217.32,2.18]
[1734249616348,2.18,217.44,217.32,2.301]
[1734249616547,2.18,217.44,217.27,2.18]
[1734249616954,2.9863,217.45,217.27,2.18]
[1734249617247,2.18,217.44,217.28,4.75385633]
[1734249617453,4.4798,217.44,217.29,11.15862385]
[1734249617648,4.4798,217.44,217.29,6.4046776]
[1734249618148,4.4798,217.44,217.3,4.75401514]
[1734249618350,2.2999,217.43,217.37,2.3005]
[1734249618752,2.3002,217.41,217.35,2.3008]
[1734249618952,2.18,217.44,217.35,2.3008]
[1734249619547,2.3002,217.4,217.35,2.3008]
[1734249621349,2.18,217.44,217.34,2.3009]
[1734249621557,2.18,217.44,217.27,6.4046776]
[1734249621756,2.3006,217.38,217.32,2.301]
[1734249621961,2.18,217.39,217.28,2.18]
[1734249622750,4.4803,217.39,217.28,2.18]
[1734249623356,4.4803,217.39,217.33,6.4409694]
[1734249623855,4.4803,217.39,217.34,2.3008]
[1734249624849,4.4803,217.39,217.33,6.4409694]
[1734249625052,2.18,217.39,217.33,6.4409694]
[1734249625854,2.18,217.39,217.35,6.4409694]
[1734249627259,4.48,217.42,217.35,6.4409694]
[1734249627561,4.48,217.42,217.37,2.3005]
[1734249628459,1.5327,217.46,217.37,6.4409694]
[1734249628761,8.6209694,217.45,217.37,6.4409694]
[1734249629657,2.2998,217.44,217.39,2.3003]
[1734249630055,8.6209694,217.45,217.39,2.3003]
[1734249630859,10.9207694,217.45,217.39,2.3003]
[1734249631057,6.4409694,217.4,217.28,8.5846776]
[1734249631262,8.6209694,217.4,217.32,6.4409694]
[1734249631460,2.3005,217.38,217.33,2.301]
[1734249632668,8.7414694,217.38,217.33,2.301]
[1734249633567,8.7414694,217.38,217.3,6.4409694]
[1734249633767,8.7414694,217.38,217.32,6.4409694]
[1734249634564,2.18,217.4,217.36,2.3006]
[1734249634762,2.18,217.4,217.34,6.4409694]
[1734249635167,2.18,217.4,217.36,2.3006]
[1734249636166,2.3,217.42,217.36,2.3006]
[1734249636167,4.46,217.42,217.36,2.3006]
[1734249636767,6.4409694,217.41,217.36,2.3006]
[1734249636964,8.7411694,217.41,217.36,2.3006]
[1734249637468,6.4409694,217.41,217.36,2.3006]
[1734249638674,2.3003,217.4,217.36,2.3006]
[1734249642172,2.16,217.46,217.38,6.4409694]
[1734249642372,2.16,217.46,217.4,6.4409694]
[1734249642566,2.16,217.46,217.4,8.7411694]
[1734249642567,2.2998,217.45,217.4,8.7411694]
[1734249642770,2.2998,217.45,217.4,2.3002]
[1734249643574,2.2998,217.45,217.41,2.3001]
[1734249648276,2.16,217.46,217.42,2.3]
[1734249649071,4.4596,217.46,217.42,2.3]
[1734249649573,2.16,217.46,217.4,6.4409694]
[1734249649778,2.2995,217.48,217.43,2.2999]
[1734249649980,4.4595,217.48,217.43,2.2999]
[1734249650282,2.2995,217.48,217.43,2.2999]
[1734249651878,49.55248029,217.49,217.43,2.2999]
[1734249652080,2.2995,217.47,217.43,2.2999]
[1734249653177,2.2995,217.47,217.42,8.7409694]
[1734249654383,2.2999,217.44,217.4,2.3001]
[1734249654584,6.4409694,217.47,217.38,6.4409694]
[1734249655081,2.2999,217.44,217.38,8.7412694]
[1734249655676,6.4409694,217.45,217.38,8.7412694]
[1734249655877,2.2999,217.43,217.38,8.7412694]
[1734249657385,2.2999,217.43,217.38,6.4409694]
[1734249657588,2.2999,217.43,217.39,2.3003]
[1734249659589,2.16,217.45,217.39,2.3003]